Cogmind - Beta 9.6 @@@ ROGUE MODE // 2020.08.28 @ 15:30:24 Player: octapi Result: Destroyed by H-88 Terminator with KE Penetrator Performance ------------- Evolutions (9) 4500 Regions Visited (14) 2800 Robots Destroyed (259) 1295 Value Destroyed (11735) 11735 Prototype IDs (14) 280 Alien Tech Used (0) 0 Bonus (4692) 4692 TOTAL SCORE: 25302 Bonus ------- Triggered High Security 500 High Alert Combat Kills 3829 Follower Combat Kills 529 Friendly Fire -166 Cogmind --------- Core Integrity 0/1600 Matter 5/300 Energy 99/100 System Corruption 4% Temperature Cool (0) Movement Core (50) Location -1/Access Parts ------- > --- POWER (2) -------- (None) > --- PROPULSION (5) --- (None) > --- UTILITY (15) ----- (None) > --- WEAPON (3) ------- (None) > --- INVENTORY (4) ---- Long-range Sensor Array Fusion Bomb Launcher Enhanced Force Lance Peak State ------------ > --- POWER ------------ Neutrino Core Reinforced Fission Core > --- PROPULSION ------- Advanced Heavy Siege Treads Advanced Heavy Siege Treads > --- UTILITY ---------- Advanced Heat Sink Improved Cooling System Improved Cooling System Large Storage Unit High-capacity Storage Unit High-capacity Storage Unit Advanced Targeting Computer Advanced Core Analyzer Improved Medium Armor Plating Centrium Heavy Armor Plating Advanced Remote Shield > --- WEAPON ----------- Phase Cannon Compact Ion Cannon KE Penetrator > --- INVENTORY -------- Neutrino Core Particle Reactor Improved Medium Treads Heavy Treads Biometal Medium Treads Advanced Heat Sink Advanced Cooling System Target Analyzer Layered Heavy Armor Plating Damper Plating Improved Focal Shield System Backup Module Plasma Cannon Phase Cannon Flak Gun Hypervelocity Gauss Rifle Enhanced Coil Gun Railgun Advanced EMP Blaster Heavy Missile Launcher Fusion Bomb Launcher Enhanced Force Lance [Rating: 137] Favorites ----------- Power Improved Deuterium Engine Engine Improved Deuterium Engine Power Core Neutrino Core Reactor Light Quantum Reactor Propulsion Light Treads Treads Light Treads Flight Unit Nuclear Pulse Array Utility High-capacity Storage Unit Device Improved Cooling System Storage High-capacity Storage Unit Processor Advanced Targeting Computer Hackware Hacking Suite Protection Damper Plating Weapon Advanced Beam Cannon Energy Gun Precision Shock Rifle Energy Cannon Advanced Beam Cannon Ballistic Gun Improved Assault Rifle Launcher Advanced EMP Blaster Slashing Weapon Makeshift Axe Piercing Weapon Spear Build | -11 -10 -9 -9 -8 -8 -7 -7 -7 -6 -5 -4 -3 -2 -1 ------- Run | Scr Mat Mat Min Mat Sto Fac Was Fac Fac Fac Fac Res Res Acc Slots Evolved 18 | . . 2 . 2 . 2 . . 2 2 2 2 2 2 Power 1 | . . . . . . . . . . . 1 . . . Propulsion 3 | . . . . 1 . . . . 1 . . . 1 . Utility 13 | . . 2 . 1 . 2 . . 1 2 . 2 1 2 Weapon 1 | . . . . . . . . . . . 1 . . . Parts Attached 235 | 6 4 19 8 15 12 23 6 . 14 11 18 74 15 10 Power 17 | 1 . 1 . 1 . 1 . . 1 . 2 7 2 1 Engine 6 | 1 . 1 . 1 . 1 . . 1 . 1 . . . Core 7 | . . . . . . . . . . . . 5 1 1 Reactor 4 | . . . . . . . . . . . 1 2 1 . Propulsion 32 | 2 . 1 2 3 . 4 1 . 3 1 2 6 3 4 Treads 28 | 2 . 1 2 3 . 4 1 . 3 1 2 6 . 3 Leg . | . . . . . . . . . . . . . . . Wheel . | . . . . . . . . . . . . . . . Hover . | . . . . . . . . . . . . . . . Flight 4 | . . . . . . . . . . . . . 3 1 Utility 90 | 1 2 10 2 3 2 8 5 . 2 5 6 37 7 . Device 24 | . 1 2 1 . . 1 . . 1 2 1 13 2 . Storage 10 | 1 1 5 . 1 . . . . . . 1 1 . . Processor 11 | . . 2 . . . 1 1 . 1 . 1 2 3 . Hackware 3 | . . . . . . 2 . . . . . . 1 . Protection 42 | . . 1 1 2 2 4 4 . . 3 3 21 1 . Artifact . | . . . . . . . . . . . . . . . Weapon 96 | 2 2 7 4 8 10 10 . . 8 5 8 24 3 5 Energy Gun 9 | 1 . 1 . 1 . . . . 2 . . 4 . . Energy Cannon 29 | . 1 4 2 5 4 1 . . 4 . 4 4 . . Ballistic Gun 24 | 1 1 1 . . 2 6 . . 1 3 2 7 . . Ballistic Cannon . | . . . . . . . . . . . . . . . Launcher 25 | . . 1 1 2 2 1 . . 1 2 2 9 1 3 Special Weapon . | . . . . . . . . . . . . . . . Impact Weapon . | . . . . . . . . . . . . . . . Slashing Weapon 2 | . . . 1 . . 1 . . . . . . . . Piercing Weapon 7 | . . . . . 2 1 . . . . . . 2 2 Special Melee Weapon . | . . . . . . . . . . . . . . . Unidentified Prototypes 14 | . . 2 . 2 1 . . . 3 1 1 2 2 . Parts Lost 66 | . . 5 2 5 3 4 . . . . . 33 . 14 Power 6 | . . 1 . . . . . . . . . 3 . 2 Propulsion 20 | . . 1 2 2 . 3 . . . . . 5 . 7 Utility 24 | . . 2 . 1 1 . . . . . . 15 . 5 Weapon 16 | . . 1 . 2 2 1 . . . . . 10 . . Highest Loss Streak 10 | . . 3 2 3 3 2 . . . . . 8 . 10 Average Slot Usage (%) 87 | . 96 97 99 95 100 99 82 76 80 81 77 81 40 25 Engine 6 | . 14 10 11 9 9 7 7 7 6 5 5 1 . . Treads 18 | . 28 21 21 22 27 22 17 15 20 16 12 10 1 . Device 8 | . 11 9 10 9 9 4 . . 3 5 7 17 4 2 Storage 20 | . 14 23 33 27 27 23 23 23 20 17 15 13 . . Processor 6 | . . 6 . . . 7 8 7 9 11 7 8 13 12 Protection 6 | . . 2 . 9 9 11 10 7 6 10 9 7 2 . Energy Cannon 9 | . 11 14 18 17 15 4 . . 5 5 9 7 . . Ballistic Gun 4 | . 14 4 . . 1 8 15 15 2 4 4 3 . . Naked Turns 10 | . . . . . . . . . . . . . . 10 Heaviest Build 194 | 11 28 75 82 104 101 109 143 143 149 158 181 194 45 37 Greatest Support 160 | 40 40 40 40 60 60 60 90 90 128 128 160 160 54 54 Greatest Overweight (x) 2 | 1 . 1 2 2 1 2 2 1 1 1 2 1 . . Average Overweight (x) . | . . . 1 1 1 1 1 1 1 1 1 . . . Largest Inventory Capacity 26 | 6 10 24 24 26 26 26 26 26 26 26 26 26 4 4 Average Capacity 22 | 5 8 16 24 24 26 26 26 26 26 26 26 25 4 4 Most Carried 26 | 6 7 22 22 26 26 26 26 26 26 26 26 26 4 4 Average Carried 21 | 3 6 11 21 23 25 25 25 24 25 25 25 23 3 3 Final Capacity 26 | 6 10 24 24 26 26 26 26 26 26 26 26 4 4 4 Final Carried 26 | 6 7 22 22 24 26 25 25 26 26 26 26 4 4 3 Class Distribution -------------------- 55% | Hauler-Mutant 16% | Mutant 11% | Hauler-Gunner 9% | Commander-Mutant 4% | Hauler-Tank Dominant Class ---------------- Mutant | -10/Materials Mutant | -9/Materials Hauler-Mutant | -9/Mines Hauler-Mutant | -8/Materials Hauler-Mutant | -8/Storage Hauler-Mutant | -7/Factory Hauler-Mutant | -7/Waste Hauler-Mutant | -7/Factory Commander-Mutant | -6/Factory Hauler-Mutant | -5/Factory Hauler-Tank | -4/Factory Hauler-Gunner | -3/Research Mutant | -2/Research Mutant | -1/Access Resources | -11 -10 -9 -9 -8 -8 -7 -7 -7 -6 -5 -4 -3 -2 -1 ----------- Run | Scr Mat Mat Min Mat Sto Fac Was Fac Fac Fac Fac Res Res Acc Matter Collected 4427 | 259 91 313 120 182 123 469 281 70 249 384 195 1691 . . Remotely . | . . . . . . . . . . . . . . . Salvage Created 13208 | . 387 875 329 977 289 638 286 93 418 1254 713 6817 49 83 Parts 610 | . 21 38 26 51 21 44 7 6 13 64 27 278 6 8 Haulers Intercepted 4 | . . 2 . 1 . . . . 1 . . . . . Recyclers Shooed 5 | . . 1 . 1 . . . . . 3 . . . . Parts Field Recycled . | . . . . . . . . . . . . . . . Retrieved Matter . | . . . . . . . . . . . . . . . Parts Self-Destructed . | . . . . . . . . . . . . . . . Prevented . | . . . . . . . . . . . . . . . Kills | -11 -10 -9 -9 -8 -8 -7 -7 -7 -6 -5 -4 -3 -2 -1 ------- Run | Scr Mat Mat Min Mat Sto Fac Was Fac Fac Fac Fac Res Res Acc Combat Hostiles Destroyed 209 | . 10 14 13 14 9 14 1 2 8 15 10 87 4 8 Melee 1 | . . . . . . . . . . . . 1 . . Guns 47 | . 2 8 . . 2 4 1 2 4 4 . 20 . . Cannons 98 | . 8 6 8 14 3 7 . . 1 7 6 38 . . AOE 44 | . . . 5 . 4 3 . . 3 2 3 12 4 8 Classes Destroyed 18 | . 3 4 1 2 1 1 1 . . 1 . 4 . . Worker 16 | . . . 1 . . . . . 1 3 . 11 . . Builder 9 | . . . . . . . . . . 3 . 6 . . Tunneler 2 | . . . . . . . . . . . . 2 . . Hauler 4 | . . 2 . 1 . . . . 1 . . . . . Recycler 9 | . . 2 . 4 . . . . . 1 . 2 . . Operator 2 | . . . . 1 . . . . . . . 1 . . Watcher 8 | . 1 . . 2 1 2 . . . . . 2 . . Swarmer 48 | . 3 . 7 4 4 3 . 1 3 . . 11 4 8 Saboteur 3 | . . . . . . . . . . . . 3 . . Grunt 79 | . 7 11 5 4 3 3 . . 1 4 6 35 . . Brawler 8 | . . . . 1 . . . . . . . 7 . . Duelist 10 | . . 1 1 . . . . . 1 1 . 6 . . Protector 1 | . . . . . . . . . . . . 1 . . Sentry 15 | . . 2 . 5 1 1 . 1 . 2 2 1 . . Hunter 18 | . . . . . 1 3 . . . 6 . 8 . . Programmer 25 | . . . . . . 4 . . 3 2 2 14 . . Behemoth 1 | . . . . . . . . . . . . 1 . . Compactor 1 | . . . . . . . 1 . . . . . . . Best Kill Streak 12 | . 4 4 5 5 4 4 1 1 3 7 3 12 4 4 Combat Bots Only 9 | . 3 3 5 2 4 4 1 1 3 4 3 9 4 4 Max Kills in Single Turn 4 | . 1 1 2 1 3 2 1 1 3 2 1 3 2 4 Gunslinging . | . . . . . . . . . . . . . . . Exploded 4 | . . . 2 . 3 2 . . 3 1 1 2 2 4 Melee 1 | . . . . . . . . . . . . 1 . . Uniques/NPCs Destroyed . | . . . . . . . . . . . . . . . Combat | -11 -10 -9 -9 -8 -8 -7 -7 -7 -6 -5 -4 -3 -2 -1 -------- Run | Scr Mat Mat Min Mat Sto Fac Was Fac Fac Fac Fac Res Res Acc Damage Taken 19738 | . 425 600 440 666 433 1328 1 110 153 1356 344 10772 266 2844 Core 3175 | . 68 127 13 81 75 188 . 10 17 68 71 818 26 1613 Absorbed by Shields 24 | . . . . . . . . . . . . . . 24 Reduced by Siege Mode 424 | . . . . . . . . . . . . 424 . . Core Remaining (%) 79 | 100 72 . 65 . 71 . . 71 98 93 93 37 98 . Volleys Fired 637 | . 32 54 25 64 23 54 16 4 30 64 21 244 2 4 Largest 3 | . 2 2 2 2 2 2 2 2 2 2 3 3 1 1 Hottest 264 | . 88 136 136 136 136 83 56 56 118 120 203 264 52 52 Shots Fired 1370 | . 63 105 46 124 41 106 32 8 59 119 46 615 2 4 Gun 500 | . 31 64 . . 4 65 32 8 33 55 11 197 . . Cannon 784 | . 32 39 42 120 34 39 . . 25 55 28 370 . . Launcher 86 | . . 2 4 4 3 2 . . 1 9 7 48 2 4 Special . | . . . . . . . . . . . . . . . Kinetic 420 | . 31 41 . . 4 65 32 8 26 55 11 147 . . Thermal 857 | . 32 62 42 120 34 39 . . 25 55 28 420 . . Explosive 27 | . . 2 4 4 3 2 . . . 1 . 5 2 4 Electromagnetic 66 | . . . . . . . . . 8 8 7 43 . . Robot Hit Streak 50 | . 11 16 7 15 22 14 14 4 13 28 16 50 22 23 Robot Miss Streak 5 | . 2 2 4 4 2 2 3 2 5 4 2 5 . 1 Penetration Max 2 | . . . . . . . . . 1 2 . 1 . . Secondary Targets 6 | . . 3 . . . . . 1 . . . 2 . . Max Gunslinging Chain 1 | . . 1 . . . . . 1 . . . 1 . . Shots Hit Robots 1005 | . 40 77 22 77 23 76 30 8 42 85 23 498 2 2 Core Hits 559 | . 21 27 18 33 14 33 13 7 15 41 20 301 4 12 Critical Hits 55 | . 1 1 2 11 1 . . . . 4 2 33 . . Critical Kills 18 | . 1 . 1 1 1 . . . . 3 . 11 . . Critical Parts Destroyed 27 | . . 1 1 9 . . . . . 1 1 14 . . Melee Attacks 31 | . . . 9 . 4 6 . . . . . . 10 2 Impact . | . . . . . . . . . . . . . . . Slashing 10 | . . . 9 . . 1 . . . . . . . . Piercing 21 | . . . . . 4 5 . . . . . . 10 2 Sneak Attacks . | . . . . . . . . . . . . . . . Combat Hostiles . | . . . . . . . . . . . . . . . Follow-up Attacks . | . . . . . . . . . . . . . . . Damage Inflicted 33538 | . 627 1320 859 1717 691 1658 846 158 1495 3212 903 18120 731 1201 Guns 8524 | . 137 624 . . 58 706 846 158 590 1341 41 4023 . . Cannons 15768 | . 490 609 531 1605 398 785 . . 460 1239 452 9199 . . Explosions 8896 | . . 77 317 112 235 142 . . 445 632 410 4614 731 1181 Melee . | . . . . . . . . . . . . . . . Ramming 350 | . . 10 11 . . 25 . . . . . 284 . 20 Kinetic 6957 | . 137 309 . . 58 706 846 158 556 1341 41 2805 . . Thermal 18203 | . 490 924 531 1605 398 785 . . 875 1256 452 10887 . . Explosive 3472 | . . 77 317 112 235 142 . . . 81 . 596 731 1181 Electromagnetic 4556 | . . . . . . . . . 64 534 410 3548 . . Impact . | . . . . . . . . . . . . . . . Slashing . | . . . . . . . . . . . . . . . Piercing . | . . . . . . . . . . . . . . . Highest Corruption 16 | . . . . . . 4 4 4 . 1 . 16 . 4 Average Corruption 4 | . . . . . . 2 4 4 . 1 . 7 . 2 Corruption Purged 2 | . . . . . . . . . . . . 2 . . Effects 184 | . . . . . . 32 8 10 . 5 . 127 . 2 Message Errors 29 | . . . . . . 13 2 . . 1 . 13 . . Matter Fused 26 | . . . . . . 8 6 3 . . . 7 . 2 Heat Flow Errors 19 | . . . . . . 3 . 4 . . . 12 . . Energy Discharges 14 | . . . . . . 5 . 1 . 1 . 7 . . Parts Rejected 1 | . . . . . . . . . . . . 1 . . Data Loss (minor) 14 | . . . . . . 2 . 2 . 2 . 8 . . Data Loss (major) 3 | . . . . . . . . . . . . 3 . . Misfires 4 | . . . . . . . . . . . . 4 . . Misdirections 4 | . . . . . . . . . . . . 4 . . Targeting Errors 54 | . . . . . . 1 . . . 1 . 52 . . Weapon Failures 16 | . . . . . . . . . . . . 16 . . Overload Shots . | . . . . . . . . . . . . . . . Overflow Damage 564 | . 2 15 1 2 40 . . . 34 50 . 262 87 71 Projectiles 266 | . 2 15 1 2 . . . . 25 16 . 205 . . Explosions 297 | . . . . . 40 . . . 9 34 . 56 87 71 Melee 1 | . . . . . . . . . . . . 1 . . Knockbacks 1 | . . . . . . . . . . . . . . 1 Impact 1 | . . . . . . . . . . . . . . 1 Kinetic . | . . . . . . . . . . . . . . . Secondary . | . . . . . . . . . . . . . . . Self-Inflicted Damage 334 | . . 11 . . . . . . . . . 314 . 9 Shots 20 | . . 1 . . . . . . . . . 19 . . Rammed 38 | . . 2 2 . . 1 . . . . . 30 . 3 Targets Rammed 38 | . . 2 2 . . 1 . . . . . 30 . 3 Kicked . | . . . . . . . . . . . . . . . Crushed . | . . . . . . . . . . . . . . . Highest Temperature 395 | . 131 198 375 173 144 277 94 285 340 15 320 395 16 . Average Temperature 82 | . 30 42 126 61 50 110 46 125 117 5 116 78 10 . Received Heat Transfer 2778 | . 168 255 129 252 153 174 . 24 . 135 30 1215 36 207 Effects 4 | . . . . . . . . . 2 . . 2 . . Shutdowns 1 | . . . . . . . . . . . . 1 . . Energy Bleed 1 | . . . . . . . . . . . . 1 . . Interference 2 | . . . . . . . . . 2 . . . . . Siege Activations 14 | . . . . . . . . . . . . 14 . . Total Turns 356 | . . . . . . . . . . . . 356 . . Longest Duration 83 | . . . . . . . . . . . . 83 . . Robots Corrupted 16 | . . . . . . . . . . 2 1 13 . . Combat Hostiles 16 | . . . . . . . . . . 2 1 13 . . Parts Fried 52 | . . . . . . . . . . 4 7 41 . . Impact Corruptions 1 | . . . . . . . . . . . . 1 . . Robots Melted 3 | . . . . . . . . . . . . 3 . . Combat Hostiles 3 | . . . . . . . . . . . . 3 . . Parts Melted 75 | . . 3 1 6 1 3 . . 5 3 4 49 . . Heat Transferred 25461 | . 888 1850 962 2886 703 1221 . . 831 1641 722 13757 . . Parts Sabotaged 3 | . . . . . . . . . . . . 1 . 2 Parts Stolen . | . . . . . . . . . . . . . . . Parts Stripped . | . . . . . . . . . . . . . . . Power Chain Reactions 11 | . . . . . . . . . . 2 . 9 . . Missiles Intercepted . | . . . . . . . . . . . . . . . Alert | -11 -10 -9 -9 -8 -8 -7 -7 -7 -6 -5 -4 -3 -2 -1 ------- Run | Scr Mat Mat Min Mat Sto Fac Was Fac Fac Fac Fac Res Res Acc Peak Influence 1935 | . 221 244 160 245 231 249 70 142 453 476 569 1935 1399 1576 Average Influence 328 | . 92 98 55 103 125 140 54 60 254 305 395 866 1202 1141 Maximum Alert Level 5 | . 1 1 . 1 1 1 . . 2 2 2 5 4 4 Low Security (%) 53 | 100 85 93 100 89 85 71 100 100 27 20 . . . . Level 1 21 | . 14 6 . 10 14 28 . . 61 69 53 7 . . Level 2 12 | . . . . . . . . . 10 10 46 47 . . Level 3 3 | . . . . . . . . . . . . 14 . 52 Level 4 6 | . . . . . . . . . . . . 19 100 47 Level 5 . | . . . . . . . . . . . . 4 . . High Security 1 | . . . . . . . . . . . . 6 . . Max Security . | . . . . . . . . . . . . . . . Squads Dispatched 52 | . 1 1 . 1 1 7 . . 3 4 2 26 3 3 Investigation 6 | . 1 1 . . . 1 . . . . . 1 . 2 Extermination 15 | . . . . . . 3 . . 2 2 2 6 . . Reinforcement 16 | . . . . 1 1 3 . . 1 2 . 6 2 . Assault 13 | . . . . . . . . . . . . 11 1 1 Garrison 2 | . . . . . . . . . . . . 2 . . Intercept . | . . . . . . . . . . . . . . . Construction Impeded 6 | . . . . . . 1 . . . 2 . 3 . . Haulers Reinforced 1 | . . . . . . . . . . . . 1 . . Stealth | -11 -10 -9 -9 -8 -8 -7 -7 -7 -6 -5 -4 -3 -2 -1 --------- Run | Scr Mat Mat Min Mat Sto Fac Was Fac Fac Fac Fac Res Res Acc Distress Signals 23 | . 1 4 . 3 2 . . . . 2 1 7 3 . Communications Jammed . | . . . . . . . . . . . . . . . Distress Signals . | . . . . . . . . . . . . . . . Times Spotted 457 | . 16 26 13 35 12 25 5 5 30 25 17 169 28 51 Peak Tracking Total 31 | . 4 4 3 5 5 6 2 3 7 6 4 31 16 16 Tactical Retreats 40 | . 2 3 4 9 . . . . 1 1 1 10 3 6 Traps | -11 -10 -9 -9 -8 -8 -7 -7 -7 -6 -5 -4 -3 -2 -1 ------- Run | Scr Mat Mat Min Mat Sto Fac Was Fac Fac Fac Fac Res Res Acc Traps Triggered 16 | . 1 1 . . . 1 . 1 . 1 4 5 1 1 Indirectly 1 | . . . . . . . . . . . . 1 . . Trap Hack Attempts . | . . . . . . . . . . . . . . . Triggered . | . . . . . . . . . . . . . . . Disarmed . | . . . . . . . . . . . . . . . Reprogrammed . | . . . . . . . . . . . . . . . Reused . | . . . . . . . . . . . . . . . Traps Extracted . | . . . . . . . . . . . . . . . Installed . | . . . . . . . . . . . . . . . Triggered 1 | . . . . . . . . . . . . 1 . . Machines | -11 -10 -9 -9 -8 -8 -7 -7 -7 -6 -5 -4 -3 -2 -1 ---------- Run | Scr Mat Mat Min Mat Sto Fac Was Fac Fac Fac Fac Res Res Acc Machines Disabled 32 | . 1 1 1 2 1 1 . 1 6 4 5 4 1 4 Max in Single Turn 4 | . 1 1 1 1 1 1 . . 4 2 1 1 1 2 Garrison Access 4 | . . . . 1 . 1 . . 2 . . . . . Machines Sabotaged . | . . . . . . . . . . . . . . . Garrisons Compromised . | . . . . . . . . . . . . . . . Overloaded Fab Kills . | . . . . . . . . . . . . . . . Fab Network Shutdowns 1 | . . . . . . . . . . . . . . 1 Hacking | -11 -10 -9 -9 -8 -8 -7 -7 -7 -6 -5 -4 -3 -2 -1 --------- Run | Scr Mat Mat Min Mat Sto Fac Was Fac Fac Fac Fac Res Res Acc Machines Accessed 54 | . 4 5 . 4 5 8 . 2 5 8 3 2 4 4 Terminals 40 | . 4 5 . 3 5 4 . 2 2 5 1 2 4 3 Fabricators 7 | . . . . . . 2 . . 1 1 2 . . 1 Repair Stations 1 | . . . . . . . . . . 1 . . . . Recycling Units . | . . . . . . . . . . . . . . . Scanalyzers 2 | . . . . . . 1 . . . 1 . . . . Garrison Access 4 | . . . . 1 . 1 . . 2 . . . . . Total Hacks 138 | . 16 12 . 9 11 26 . 5 10 20 5 3 8 13 Successful 75 | . 8 7 . 7 7 15 . 2 4 11 5 1 2 6 Failed 63 | . 8 5 . 2 4 11 . 3 6 9 . 2 6 7 Catastrophic 11 | . 1 1 . . 2 1 . . 1 3 . 1 1 . Database Lockouts . | . . . . . . . . . . . . . . . Manual 69 | . 13 9 . 7 6 13 . 4 1 7 1 1 3 4 Terminals 103 | . 16 12 . 7 11 11 . 5 5 13 2 3 8 10 Fabricators 20 | . . . . . . 10 . . 2 2 3 . . 3 Repair Stations 3 | . . . . . . . . . . 3 . . . . Recycling Units . | . . . . . . . . . . . . . . . Scanalyzers 5 | . . . . . . 3 . . . 2 . . . . Garrison Access 7 | . . . . 2 . 2 . . 3 . . . . . Terminal Hacks 24 | . 3 1 . . 4 2 . 2 1 5 1 1 2 2 Part Schematic 1 | . . . . . . 1 . . . . . . . . Robot Schematic 1 | . . . . . . 1 . . . . . . . . Robot Analysis 1 | . . . . . . . . . 1 . . . . . Open Door 4 | . . . . . 3 . . . . . . . . 1 Level Access Points 4 | . 1 1 . . . . . 1 . 1 . . . . Branch Access Points 3 | . 1 . . . . . . 1 . . . . 1 . Alert Level 1 | . . . . . . . . . . . . 1 . . Unreport Threat 1 | . . . . . . . . . . 1 . . . . Locate Traps 4 | . 1 . . . . . . . . 1 1 . 1 . Zone Layout 4 | . . . . . 1 . . . . 2 . . . 1 Fabricator Hacks 15 | . . . . . . 8 . . 1 1 3 . . 2 Network Status 1 | . . . . . . 1 . . . . . . . . Load Schematic 6 | . . . . . . 2 . . 1 1 1 . . 1 Build 8 | . . . . . . 5 . . . . 2 . . 1 Repair Station Hacks 2 | . . . . . . . . . . 2 . . . . Scan Component 1 | . . . . . . . . . . 1 . . . . Repair 1 | . . . . . . . . . . 1 . . . . Recycling Unit Hacks . | . . . . . . . . . . . . . . . Scanalyzer 4 | . . . . . . 2 . . . 2 . . . . Insert Component 2 | . . . . . . 1 . . . 1 . . . . Analyze 2 | . . . . . . 1 . . . 1 . . . . Garrison Access Hacks 4 | . . . . 1 . 1 . . 2 . . . . . Seal Access 4 | . . . . 1 . 1 . . 2 . . . . . Unauthorized Hacks 26 | . 5 6 . 6 3 2 . . . 1 1 . . 2 Terminals 26 | . 5 6 . 6 3 2 . . . 1 1 . . 2 Track 14 | . 2 3 . 3 2 1 . . . 1 1 . . 1 Botnet 11 | . 3 2 . 3 1 1 . . . . . . . 1 Operators 1 | . . 1 . . . . . . . . . . . . Fabricators . | . . . . . . . . . . . . . . . Repair Stations . | . . . . . . . . . . . . . . . Recycling Units . | . . . . . . . . . . . . . . . Scanalyzers . | . . . . . . . . . . . . . . . Garrison Access . | . . . . . . . . . . . . . . . Data Cores Recovered 1 | . . . . 1 . . . . . . . . . . Used . | . . . . . . . . . . . . . . . Hacking Detections 47 | . 4 5 . 3 3 7 . 1 3 8 3 2 4 4 Full Trace Events 3 | . . . . . . 1 . . . . . . . 2 Feedback Events . | . . . . . . . . . . . . . . . Feedback Blocked . | . . . . . . . . . . . . . . . Robot Schematics Acquired 1 | . . . . . . 1 . . . . . . . . Robots Built 8 | . . . . . . 4 . . . . 2 . . 2 Matter 1008 | . . . . . . 504 . . . . 252 . . 252 Time 402 | . . . . . . 268 . . . . 67 . . 67 Total Robot Build Rating 32 | . . . . . . 16 . . . . 8 . . 8 Part Schematics Acquired 3 | . . . . . . 2 . . . 1 . . . . Parts Built 3 | . . . . . . 1 . . . . 2 . . . Matter 402 | . . . . . . 124 . . . . 278 . . . Time 100 | . . . . . . 31 . . . . 69 . . . Total Part Build Rating 20 | . . . . . . 2 . . . . 18 . . . Parts Repaired 1 | . . . . . . . . . . 1 . . . . Time 50 | . . . . . . . . . . 50 . . . . Parts Recycled . | . . . . . . . . . . . . . . . Recycled Matter . | . . . . . . . . . . . . . . . Retrieved Matter . | . . . . . . . . . . . . . . . Retrieved Components . | . . . . . . . . . . . . . . . Parts Scanalyzed 2 | . . . . . . 1 . . . 1 . . . . Part Schematics Acquired 2 | . . . . . . 1 . . . 1 . . . . Parts Damaged . | . . . . . . . . . . . . . . . Bothacking | -11 -10 -9 -9 -8 -8 -7 -7 -7 -6 -5 -4 -3 -2 -1 ------------ Run | Scr Mat Mat Min Mat Sto Fac Was Fac Fac Fac Fac Res Res Acc Used RIF Installer . | . . . . . . . . . . . . . . . Robots Hacked . | . . . . . . . . . . . . . . . Non-combat . | . . . . . . . . . . . . . . . Combat . | . . . . . . . . . . . . . . . Robot Hacks Applied . | . . . . . . . . . . . . . . . Relay Couplers Released 2 | . . . . . . . . . 2 . . . . . Machine Destruction 2 | . . . . . . . . . 2 . . . . . Robots Rewired . | . . . . . . . . . . . . . . . Allies Hacked 17 | . . . . . . . 2 5 9 . 1 . . . Hacks Repelled 1 | . . . . . . . . . 1 . . . . . Allies | -11 -10 -9 -9 -8 -8 -7 -7 -7 -6 -5 -4 -3 -2 -1 -------- Run | Scr Mat Mat Min Mat Sto Fac Was Fac Fac Fac Fac Res Res Acc Total Allies 24 | . . . . . . 4 3 5 7 . 3 . . 2 Largest Group 9 | . . . . . . 4 4 8 9 1 2 . . 2 Highest-Rated Group 335 | . . . . . . 152 310 335 199 10 76 . . 76 Highest-Rated Ally 129 | . . . . . . 38 129 129 35 10 38 . . 38 Total Orders 5 | . . . . . . . . 2 2 1 . . . . STAY 1 | . . . . . . . . 1 . . . . . . GOTO 4 | . . . . . . . . 1 2 1 . . . . Ally Attacks 207 | . . . . . . 3 49 4 133 . 13 . . 5 Total Damage 4037 | . . . . . . 50 662 34 2038 . 688 . . 565 Kills 29 | . . . . . . 2 4 . 18 . 2 . . 3 Allies Corrupted . | . . . . . . . . . . . . . . . Allies Melted . | . . . . . . . . . . . . . . . Intel | -11 -10 -9 -9 -8 -8 -7 -7 -7 -6 -5 -4 -3 -2 -1 ------- Run | Scr Mat Mat Min Mat Sto Fac Was Fac Fac Fac Fac Res Res Acc Robot Analysis Total 1 | . . . . . . . . . 1 . . . . . Derelict Logs Recovered 2 | . . . 2 . . . . . . . . . . . Drone Launches . | . . . . . . . . . . . . . . . Drone Recoveries . | . . . . . . . . . . . . . . . Exploration | -11 -10 -9 -9 -8 -8 -7 -7 -7 -6 -5 -4 -3 -2 -1 ------------- Run | Scr Mat Mat Min Mat Sto Fac Was Fac Fac Fac Fac Res Res Acc Turns Passed 15834 | 65 608 1284 1843 1232 714 2515 237 403 1533 1159 764 2693 404 380 Spaces Moved 8050 | 36 292 554 941 453 313 983 86 210 758 470 302 967 856 829 Core 658 | 6 . . . . . . . . . . . 80 229 343 Treads 6279 | 30 292 554 941 453 313 983 86 210 758 470 302 887 . . Legs . | . . . . . . . . . . . . . . . Wheels . | . . . . . . . . . . . . . . . Hover . | . . . . . . . . . . . . . . . Flight 1113 | . . . . . . . . . . . . . 627 486 Fastest Speed 34 | 50 160 160 180 180 180 180 180 180 180 180 180 50 34 34 Average Speed 149 | 143 160 170 180 189 180 180 180 180 180 180 185 174 38 41 Slowest Speed 220 | 160 160 180 200 200 180 200 200 180 180 180 220 190 50 50 Overloaded Moves . | . . . . . . . . . . . . . . . Propulsion Burnouts . | . . . . . . . . . . . . . . . Robots Hopped 10 | . . . . . . . . . . . . . 6 4 Cave-ins Triggered . | . . . . . . . . . . . . . . . Exploration Rate (%) 35 | 4 46 38 100 39 57 24 63 9 24 20 12 32 28 30 Regions Visited 14 Branch Regions 2 Pre-discovered Areas . | . . . . . . . . . . . . . . . Known Exits Taken 7 | . 1 1 1 . . . . 1 1 1 1 . . . Unknown Exits Taken 5 | 1 . . . 1 1 . . . . . . 1 1 . Scrap Searched 1 | . . . 1 . . . . . . . . . . . Spaces Dug 61 | . . 8 9 . 4 5 . . . 19 . 4 10 2 Terrain Destroyed 368 | . . 15 25 17 30 28 . . 6 45 . 139 32 31 Melee 30 | . . . 9 . 4 5 . . . . . . 10 2 Projectile 38 | . . . . . . . . . . 26 . 12 . . AOE 300 | . . 15 16 17 26 23 . . 6 19 . 127 22 29 Actions | -11 -10 -9 -9 -8 -8 -7 -7 -7 -6 -5 -4 -3 -2 -1 --------- Run | Scr Mat Mat Min Mat Sto Fac Was Fac Fac Fac Fac Res Res Acc Total 10671 | 47 376 784 1030 701 416 1602 142 229 869 663 473 1587 899 853 Wait 1416 | . 36 125 43 154 48 518 14 7 46 110 113 202 . . Move 8018 | 35 291 553 940 452 312 983 85 209 757 469 301 966 844 821 Hop 9 | . . . . . . . . . . . . . 5 4 Pick Up 120 | 6 6 19 3 10 9 9 5 4 8 3 7 27 4 . Fast Attach 72 | 6 2 9 . 3 2 4 3 . 6 5 9 10 9 4 Attach 86 | . . 3 2 6 3 6 1 . 2 2 4 45 6 6 Detach 33 | . . 3 . 1 1 1 3 . 2 1 1 12 3 5 Swap 77 | . 2 7 6 6 7 13 2 . 6 4 5 19 . . Drop 116 | . 7 9 . 5 7 7 13 3 12 5 12 32 3 1 Fire 637 | . 32 54 25 64 23 54 16 4 30 64 21 244 2 4 Melee 31 | . . . 9 . 4 6 . . . . . . 10 2 Ram 6 | . . . . . . . . . . . . 3 . 3 Kick . | . . . . . . . . . . . . . . . Crush 32 | . . 2 2 . . 1 . . . . . 27 . . Escape Stasis 18 | . . . . . . . . 2 . . . . 13 3 Rewire . | . . . . . . . . . . . . . . . Trap . | . . . . . . . . . . . . . . . Miscellaneous . | . . . . . . . . . . . . . . . Route ------- -11/Scrapyard -10/Materials (discovered 4 exits: *Mat x3 / *Min) -9/Materials (discovered 4 exits: *Mat x3 / *Min) -9/Mines (discovered 2 exits: *Mat x2) -8/Materials (discovered 2 exits: *Fac / *Sto) -8/Storage -7/Factory -7/Waste -7/Factory (discovered 6 exits: *Fac x4 / Low x2) -6/Factory (discovered 2 exits: *Fac / *Low) -5/Factory (discovered 4 exits: *Fac x4) -4/Factory -3/Research -2/Research (discovered 3 exits: *Acc / Tes x2) -1/Access History --------- Turn | Location | Event 33 | -11/Scrapyard | Discovered new exit (range 15) 66 | -11/Scrapyard | Entered Materials 92 | -10/Materials | Identified exit to Materials 92 | -10/Materials | Identified exit to Mines 316 | -10/Materials | Build established: Mutant 674 | -10/Materials | Entered another Materials area 674 | -9/Materials | Evolved 2 slots: Utility x2 804 | -9/Materials | Discovered new exit (range 8) 819 | -9/Materials | Lost 3 parts (1p1n1w) 1295 | -9/Materials | Discovered new exit (range 12) 1605 | -9/Materials | Identified exit to Materials 1956 | -9/Materials | Identified exit to Mines 1958 | -9/Materials | Entered Mines 2046 | -9/Mines | Learned Materials trap positions 2124 | -9/Mines | Build established: Hauler-Mutant 2133 | -9/Mines | Learned Materials emergency access door positions 2682 | -9/Mines | A weapon hastily lodged in a ceiling crevice suddenly fell to the ground 2707 | -9/Mines | Discovered exit to Materials (range 9) 2963 | -9/Mines | Discovered exit to Materials (range 9) 3801 | -9/Mines | Entered Materials 3801 | -8/Materials | Evolved 2 slots: Propulsion x1, Utility x1 3802 | -8/Materials | Loaded intel: 8 trap records 4354 | -8/Materials | Discovered new exit (range 15) 4510 | -8/Materials | Discovered new exit (range 11) 4859 | -8/Materials | Lost 3 parts (1n1u1w) 5033 | -8/Materials | Entered Storage 5617 | -8/Storage | Discovered new exit (range 16) 5685 | -8/Storage | Lost 3 parts (1u2w) 5747 | -8/Storage | Entered Factory 5747 | -7/Factory | Evolved 2 slots: Utility x2 5953 | -7/Factory | Discovered new exit (range 13) 7427 | -7/Factory | Fabricated Armor Integrity Analyzer (x1) 7983 | -7/Factory | Fabricated P-60 Hacker (x2) 8117 | -7/Factory | Fabricated P-60 Hacker (x2) 8262 | -7/Factory | Sucked down chute 8262 | -7/Factory | Entered Waste 8262 | -7/Waste | Met up with 1 ally sucked down the chute earlier 8284 | -7/Waste | Spotted C-40 Crusher 8301 | -7/Waste | Destroyed C-40 Crusher 8305 | -7/Waste | Hacker 4c assimilated hostile C-40 Crusher 8310 | -7/Waste | Spotted C-40 Crusher 8318 | -7/Waste | Found Damper Plating 8325 | -7/Waste | Found Damper Plating 8345 | -7/Waste | 3 allies followed down the chute 8354 | -7/Waste | Spotted C-40 Crusher 8382 | -7/Waste | Allies destroyed C-40 Crusher 8410 | -7/Waste | Found Damper Plating 8462 | -7/Waste | Discovered new exit (range 15) 8499 | -7/Waste | Entered Factory 8499 | -7/Factory | Accompanied by 4 allies 8711 | -7/Factory | Hacker 4f assimilated hostile O-16 Technician 8721 | -7/Factory | Identified exit to Lower Caves 8721 | -7/Factory | Identified exit to Factory 8722 | -7/Factory | Hacker 4f assimilated hostile G-47 Trooper 8774 | -7/Factory | Hacker 4f assimilated hostile S-27 Virus 8776 | -7/Factory | Hacker 4g assimilated hostile S-27 Virus 8791 | -7/Factory | Hacker 4f assimilated hostile O-16 Technician 8902 | -7/Factory | Entered another Factory area 8902 | -6/Factory | Accompanied by 6 allies 8902 | -6/Factory | Evolved 2 slots: Propulsion x1, Utility x1 9280 | -6/Factory | Build established: Commander-Mutant 9325 | -6/Factory | Hacker 4f assimilated hostile S-27 Virus 9402 | -6/Factory | Hacker 4f assimilated hostile S-27 Virus 9409 | -6/Factory | Hacker 4f assimilated hostile S-27 Virus 9562 | -6/Factory | Found Powered Armor 9657 | -6/Factory | Discovered new exit (range 14) 9780 | -6/Factory | Identified exit to Lower Caves 10106 | -6/Factory | Hacker 4f assimilated hostile Y-54 Guardian 10159 | -6/Factory | Hacker 4g assimilated hostile Y-54 Guardian 10250 | -6/Factory | Spotted B-75 Beast 10256 | -6/Factory | P-60 Hacker assimilated allied Soldier 5a 10281 | -6/Factory | Allies destroyed B-75 Beast 10379 | -6/Factory | Discovered new exit (range 15) 10422 | -6/Factory | Identified exit to Factory 10435 | -6/Factory | Entered another Factory area 10435 | -5/Factory | Accompanied by 1 ally 10435 | -5/Factory | Evolved 2 slots: Utility x2 10456 | -5/Factory | Identified exit to Factory 10557 | -5/Factory | Build established: Hauler-Mutant 11036 | -5/Factory | Repaired Imp. Medium Treads 11594 | -5/Factory | Entered another Factory area 11594 | -4/Factory | Evolved 2 slots: Power x1, Weapon x1 11717 | -4/Factory | Fabricated P-60 Hacker (x2) 11762 | -4/Factory | Hacker 7a assimilated hostile G-67 Veteran 11999 | -4/Factory | Fabricated Adv. Heavy Siege Treads (x2) 12241 | -4/Factory | Build established: Hauler-Tank 12301 | -4/Factory | Discovered new exit (range 7) 12318 | -4/Factory | Identified exit to Research 12358 | -4/Factory | Entered Research 12358 | -3/Research | Evolved 2 slots: Utility x2 12807 | -3/Research | Build established: Hauler-Gunner 12837 | -3/Research | Found Fusion Bomb Launcher 12958 | -3/Research | Spotted B-86 Titan 13003 | -3/Research | Destroyed B-86 Titan 13021 | -3/Research | Found Hvy. Reflective Plating 13027 | -3/Research | Found Prototype Protection 13027 | -3/Research | Identified Centrium Heavy Armor Plating 13349 | -3/Research | Found Enh. Force Lance 13608 | -3/Research | First assault squad dispatched 13636 | -3/Research | Found Gamma Bomb Array 14273 | -3/Research | Destroyed 7 combat bots 14562 | -3/Research | System corruption reached 10% 14601 | -3/Research | Lost 3 parts (1p2u) 14619 | -3/Research | Destroyed 9 combat bots 14745 | -3/Research | Lost 3 parts (1u2w) 14867 | -3/Research | Garrison activated, responded to threat 14869 | -3/Research | High security lockdown imminent 14916 | -3/Research | Lost 8 parts (1p1n4u2w) 14921 | -3/Research | Destroyed 9 combat bots 14949 | -3/Research | High security lockdown engaged 15002 | -3/Research | Core integrity fell below 50% 15029 | -3/Research | Lost 6 parts (1n2u3w) 15037 | -3/Research | Discovered new exit (range 15) 15051 | -3/Research | Entered another Research area 15051 | -2/Research | Evolved 2 slots: Propulsion x1, Utility x1 15058 | -2/Research | Identified exit to Testing 15213 | -2/Research | Found Prototype Processor 15213 | -2/Research | Identified Exp. Armor Integrity Analyzer 15219 | -2/Research | Found Prototype Device 15219 | -2/Research | Identified EM Disruption Field 15269 | -2/Research | Build established: Mutant 15287 | -2/Research | Spotted B-90 Cyclops 15301 | -2/Research | First assault squad dispatched 15351 | -2/Research | Spotted B-90 Cyclops 15452 | -2/Research | Discovered new exit (range 9) 15455 | -2/Research | Entered Access 15455 | -1/Access | Evolved 2 slots: Utility x2 15570 | -1/Access | Lost 3 parts (1n2u) 15636 | -1/Access | Spotted B-99 Colossus 15642 | -1/Access | Fabricated P-60 Hacker? 15656 | -1/Access | Local fabrication network quarantined 15693 | -1/Access | Core integrity fell below 50% 15705 | -1/Access | First assault squad dispatched 15708 | -1/Access | Lost 10 parts (2p6n2u) 15812 | -1/Access | Core integrity fell below 20% 15835 | -1/Access | Destroyed by H-88 Terminator with KE Penetrator Last Messages --------------- 15781_ System corrupted: Matter fused (-5). 15792_ Slug penetrates Wall. 15794_ Penetrated by Slug. 15795_ Slug penetrates Wall. 15805_ Adv. Launcher Guidance Computer destroyed. 15811_ C-30 ARC bursts open, deploying its payload. 15811_ G-73 Enforcer unfolds itself. 15811_ E-15 Imp unfolds itself. 15813_ K-01 Serf collects debris. 15821_ Adv. Core Analyzer blown off. 15821_ Exp. Armor Integrity Analyzer blown off. 15821_ E-15 Imp destroyed. 15824_ Slug penetrates Wall. 15830_ Penetrated by Slug. 15832_ Slug penetrates Wall. 15832_ Penetrated by Slug. 15833_ Slug penetrates Wall. 15835_ Slammed into H-88 Terminator. 15835_ Destabilizing: Core damaged (-80). 15835_ Penetrated by Slug. Map ----- +----------------------------------------------------+ | "" #???# # #???????????????? | | " #???# ! # #???????????????? | | #???# "" # #???????????????? | | #???# "" # #???????????????? | | #???# """""" + #???????????????? | | #???# """""" # #???????????????? | | #???# "" # #???????????????? | | #########???# "" # #???????????????? | | ????????????# # #???????????????? | | ????????????# # #???????????????? | | ????????????# # #???????????????? | | ????????????###+########## #???????????????? | | ??????????????# #????????# #???????????????? | | ??????????????# #????????# #???????????????? | | #+######+###### ########## #???????????????? | | #?? ????????????? | | #? ????????????? | | # ???????????### | | k/ ????????????# | | k# ????????????# | | = #?????????????#!! | | % #?????????????#!! | | ####+###/################# #?????????????#!! | | ??# # | # k #?????????????### | | ??# # h # #???????????????? | | ??# # @h % #???????????????? | | ??# " # # #???????????????? | | ??# """ ; # #???????????????? | | ??# """ # # #???????????????? | | ??# " ; # ?????????????? | | ??# # #? ???????????? | | ??# # #?? ????????### | | ??# # #??? ????????# | | ??# # #??? ?????????# | | ??# ! # #???? ?????????# | | ??############## !! #???? ??????????# | | ???????????????# !! #?????## ??????????# | | ???????????????# #??????? ????????????# | | ???????????????# #?????????????????????### | | ???????????????###########???????????????????????? | | ?????????????????????????????????????????????????? | | ?????????????????????????????????????????????????? | | ?????????????????????????????????????????????????? | | ?????????????????????????????????????????????????? | | ?????????????????????????????????????????????????? | | ?????????????????????????????????????????????????? | | ?????????????????????????????????????????????????? | | ?????????????????????????????????????????????????? | | ?????????????????????????????????????????????????? | | ?????????????????????????????????????????????????? | +----------------------------------------------------+ Best States ------------- Heat Dissipation 123 Energy Generation 39 Energy Capacity 565 Matter Stores 300 Matter Capacity 300 Sight Range 16 Terrain Scan Density 10 Jamming Range 16 Armor Coverage 3200 Resistance: KI 25 Resistance: TH 25 Resistance: EM 90 Weapon Cycling 30 Phase Shifting 10 Evasion (%) 63 Targeting Accuracy 8 Launcher Accuracy 40 Core Analysis 10 Armor Integrity Analysis 90 Recoil Reduction 4 Offensive Hacking 20 Item Schematics ----------------- Spear | -7/Factory | Scanalyzed Armor Integrity Analyzer | -7/Factory | Hacked Phase Cannon | -5/Factory | Scanalyzed Robot Schematics ------------------ P-60 Hacker | -7/Factory | Hacked Fabricated ------------ Armor Integrity Analyzer | x1 | -7/Factory P-60 Hacker | x2 | -7/Factory P-60 Hacker | x2 | -7/Factory P-60 Hacker | x2 | -4/Factory Adv. Heavy Siege Treads | x2 | -4/Factory | Preloaded P-60 Hacker | x2 | -1/Access Alien Tech Used ----------------- None Achievements -------------- None Challenges ------------ None Game ------ Seed ScanWaveRigger Manual? 0 Play Time 02:51:59 Cumulative 195.6 hours Start 2020.08.28 @ 11:01:56 End 2020.08.28 @ 15:30:24 Sessions 1 Manual Loads 0 Difficulty Rogue Special Mode None Game No. 111 Rogue 111 Adventurer 0 Explorer 0 Win Type - Total 8 Types 7/0/1/0/0/0/0 Lore% 64 Gallery% 74 Achievement% 57 Wizard Run 0 Options --------- ASCII 0 Keyboard 0 Movement Mouse Keybinds 0 Fullscreen 1 Font 18/SmallcapsGlow Map View 76x50 Tactical HUD 1 Map Filters NONE Filters NONE Steam 1 RUN: f3e5ac67-c391-43a7-96d3-1fcbfcff65a3